lending/lending_fUSD_20251020
["ID","MTS","AMOUNT","RATE_DAILY","PERIOD"]
[391918980,1760986194254,-500.0,0.00014995,2]
[391918981,1760986194280,-500.0,0.00014995,2]
[391918982,1760986194305,-500.0,0.00014995,2]
[391918983,1760986194335,-500.0,0.00014995,2]
[391918984,1760986194363,-500.0,0.00014995,2]
[391918985,1760986194390,-353.63016662,0.00014995,2]
[391918986,1760986194416,-500.0,0.00014995,2]
[391918987,1760986194449,-146.36983338,0.00014995,2]
[391918988,1760986194920,-353.63016662,0.00014995,2]
[391918989,1760986194957,-500.0,0.00014995,2]
[391918990,1760986194986,-500.0,0.00014995,2]
[391918991,1760986195014,-500.0,0.00014995,2]
[391918992,1760986195044,-500.0,0.00014995,2]
[391918993,1760986195073,-500.0,0.00014995,2]
[391918994,1760986195098,-500.0,0.00014999,2]
[391918995,1760986195124,-500.0,0.00014999,2]
[391918996,1760986195152,-500.0,0.00014999,2]
[391918997,1760986195179,-5646.36983338,0.00015,2]
[391918998,1760986195427,-10000.0,0.00015,2]
[391918999,1760986195840,-10000.0,0.00015,2]
[391919000,1760986196320,-10000.0,0.00015,2]
[391919001,1760986196918,-10000.0,0.00015,2]
[391919002,1760986198562,-10000.0,0.00015,2]
[391919003,1760986198961,-10000.0,0.00015,2]
[391919004,1760986200531,-205.88646921,0.00014895,2]
[391919005,1760986200557,-9794.11353079,0.00015,2]
[391919006,1760986202599,-300.0,0.00014999,2]
[391919007,1760986202625,-1200.0,0.00014999,2]
[391919008,1760986202649,-300.0,0.00014999,2]
[391919009,1760986202675,-300.0,0.00014999,2]
[391919010,1760986202700,-7900.0,0.00015,2]
[391919011,1760986203145,3015.5181883,0.00034353,30]
[391919012,1760986205780,-205.88646921,0.000149,2]
[391919013,1760986205805,-9794.11353079,0.00015,2]
[391919014,1760986210130,-22300.0,0.00015,2]
[391919015,1760986215500,-4128.335,0.00015,2]
[391919021,1760986231379,-268.3990187,0.00015,2]
[391919022,1760986231434,-2300.0,0.00015,2]
[391919023,1760986231446,-2408.8,0.00015,2]
[391919024,1760986231487,-3359.06180605,0.00015,2]
[391919025,1760986231500,-7251.72960701,0.00015,2]
[391919026,1760986231511,-570.09,0.00015,2]
[391919027,1760986231543,-5780.2525716,0.00015,2]
[391919028,1760986231556,-4245.27152944,0.00015,2]
[391919029,1760986231568,-566.66878313,0.00015,2]
[391919030,1760986231580,-7350.65098903,0.00015,2]
[391919031,1760986231591,-580.073501,0.00015,2]
[391919032,1760986231625,-3162.33049418,0.00015,2]
[391919033,1760986231673,-568.63769063,0.00015,2]
[391919034,1760986231685,-1403.84725605,0.00015,2]
[391919035,1760986231696,-10256.22760576,0.00015,2]
[391919036,1760986231708,-401.77271717,0.00015,2]
[391919058,1760986237466,-500.0,0.00014999,2]
[391919059,1760986237476,-500.0,0.00014999,2]
[391919060,1760986237485,-500.0,0.00014999,2]
[391919061,1760986237494,-500.0,0.00014999,2]
[391919075,1760986237674,-500.0,0.00014999,2]
[391919078,1760986237684,-573.81086068,0.00014999,2]
[391919080,1760986237694,-500.0,0.00014999,2]
[391919082,1760986237703,-500.0,0.00014999,2]
[391919084,1760986237712,-500.0,0.00014999,2]
[391919086,1760986237721,-500.0,0.00014999,2]
[391919088,1760986237731,-500.0,0.00014999,2]
[391919090,1760986237740,-33791.55851302,0.00015,2]
[391919092,1760986237750,-23163.34544867,0.00015,2]
[391919094,1760986237759,-36248.4647373,0.00015,2]
[391919096,1760986237768,-1219.23133043,0.00015,2]
[391919098,1760986237777,-200.0,0.00015,2]
[391919100,1760986237786,-200.0,0.00015,2]
[391919102,1760986237795,-2238.47448052,0.00015038,2]
[391919104,1760986237806,-261.52551948,0.00015038,2]
[391919106,1760986237815,-253.45231176,0.00015038,2]
[391919108,1760986237824,-2054.21887472,0.0001505,2]
[391919110,1760986237836,-300.0,0.00015075,2]
[391919112,1760986237846,-1980.54275574,0.00015143,2]
[391919114,1760986237858,-200.0,0.0001515,2]
[391919116,1760986237867,-200.0,0.0001515,2]
[391919118,1760986237879,-300.0,0.00015233,2]
[391919120,1760986237889,-279.48873929,0.00015233,2]
[391919122,1760986237898,-200.0,0.00015301,2]
[391919124,1760986237908,-200.0,0.00015301,2]
[391919126,1760986237917,-151.0,0.00015375,2]
[391919128,1760986237925,-200.0,0.00015455,2]
[391919130,1760986237935,-200.0,0.00015455,2]
[391919132,1760986237944,-2500.0,0.00015985,2]
[391919134,1760986237953,-255.0,0.0001612,2]
[391919136,1760986237962,-2387.11919636,0.000162,5]
[391919138,1760986237971,-480.0,0.00016411,2]
[391919140,1760986237980,-293.0,0.00016416,2]
[391919141,1760986237990,-250.0,0.00016499,2]
[391919143,1760986237999,-198.81304708,0.000165,2]
[391919146,1760986238008,-300.0,0.000165,2]
[391919148,1760986238018,-2500.0,0.000165,2]
[391919149,1760986238027,-250.0,0.000165,2]
[391919151,1760986238036,-1121.25,0.0001652,2]
[391919153,1760986238045,-3344.7735842,0.00016915,2]
[391919155,1760986238055,-10486.6335382,0.00016915,2]
[391919157,1760986238063,-150.0,0.00016951,2]
[391919159,1760986238071,-200.0,0.00016977,2]
[391919161,1760986238079,-2054.21887465,0.00017178,2]
[391919163,1760986238088,-433.0,0.00017334,2]
[391919165,1760986238096,-746.3198655,0.00017343,2]
[391919167,1760986238105,-2339.8842208,0.00017343,2]
[391919169,1760986238116,-1121.25,0.0001739,2]
[391919171,1760986238125,-347.92933343,0.00017998,2]
[391919173,1760986238135,-856.53,0.00018082,2]
[391919176,1760986238146,-500.0,0.000181,2]
[391919178,1760986238156,-500.0,0.000181,2]
[391919180,1760986238165,-500.0,0.000181,2]
[391919182,1760986238174,-364.4054542,0.000181,2]
[391919184,1760986238184,-166.66,0.00018127,2]
[391919185,1760986238194,-1121.25,0.00018259,2]
[391919187,1760986238204,-166.66,0.00018509,2]
[391919189,1760986238213,-475.93135235,0.00018562,2]
[391919191,1760986238223,-736.0,0.00018624,2]
[391919193,1760986238232,-856.53,0.0001876,2]
[391919195,1760986238254,-197.87671708,0.00018873,2]
[391919196,1760986238264,-166.66,0.0001889,2]
[391919197,1760986238274,-434.92150595,0.00018973,2]
[391919198,1760986238283,-282.94741548,0.00018973,2]
[391919199,1760986238292,-196.42820266,0.00018999,2]
[391919200,1760986238302,-207.73939185,0.00018999,2]
[391919201,1760986238311,-615.96626824,0.00018999,2]
[391919202,1760986238320,-59687.22498483,0.00019,2]
[391919304,1760986240269,-0.06032167,0.00019,2]
[391919328,1760986242462,-602.23460936,0.00014999,2]
[391919329,1760986242472,-52959.75461177,0.00019,2]
[391919330,1760986242481,-1121.25,0.00019129,2]
[391919331,1760986242491,-250.0,0.00019229,7]
[391919332,1760986242500,-166.66,0.00019272,2]
[391919333,1760986242509,-2054.21887465,0.00019306,2]
[391919334,1760986242519,-856.53,0.00019438,2]
[391919335,1760986242528,-166.66,0.00019654,2]
[391919336,1760986242537,-500.0,0.00019973,2]
[391919337,1760986242546,-500.0,0.00019973,2]
[391919338,1760986242557,-1121.25,0.00019998,2]
[391919339,1760986242567,-3172.03,0.00019999,2]
[391919340,1760986242576,-500.0,0.00019999,2]
[391919341,1760986242586,-500.0,0.00019999,2]
[391919342,1760986242595,-104049.36292631,0.0002,5]
[391919343,1760986242605,-13210.84591886,0.0002,2]
[391919344,1760986242616,-1006.0,0.00020018,2]
[391919345,1760986242626,-166.66,0.00020035,2]
[391919346,1760986242638,-856.53,0.00020116,2]
[391919347,1760986242647,-244.94,0.00020187,2]
[391919348,1760986242659,-300.0,0.00020496,2]
[391919349,1760986242670,-500.3887811,0.00020667,2]
[391919350,1760986242681,-500.0,0.00020667,2]
[391919351,1760986242692,-500.0,0.00020667,2]
[391919352,1760986242701,-500.0,0.00020667,2]
[391919353,1760986242711,-500.0,0.00020667,2]
[391919354,1760986242720,-500.0,0.00020667,2]
[391919355,1760986242729,-856.53,0.00020795,2]
[391919356,1760986242740,-299.45000116,0.0002085,2]
[391919357,1760986242749,-1121.25,0.00020868,2]
[391919358,1760986242759,-9999.99,0.00020951,2]
[391919359,1760986242769,-1583.65,0.00020951,2]
[391919360,1760986242779,-347.92933343,0.00021095,2]
[391919361,1760986242789,-417.0,0.000211,2]
[391919362,1760986242799,-1000.0,0.00021215,2]
[391919363,1760986242809,-625.48074525,0.00021215,2]
[391919364,1760986242821,-6764.80617927,0.000215,2]
[391919365,1760986242831,-1121.25,0.00021737,2]
[391919367,1760986242844,-300.0,0.00021866,2]
[391919368,1760986242854,-555.07691965,0.00022,4]
[391919369,1760986242864,-1471.945348,0.00022,7]
[391919370,1760986242873,-1471.945348,0.00022,7]
[391919371,1760986242885,-1471.945348,0.00022,7]
[391919372,1760986242895,-1471.945348,0.00022,7]
[391919373,1760986242905,-1121.25,0.00022606,2]
[391919374,1760986242918,-151.0,0.00023288,7]
[391919375,1760986242928,-151.0,0.00023288,7]
[391919376,1760986242940,-151.0,0.00023288,7]
[391919377,1760986242950,-151.0,0.00023288,7]
[391919378,1760986242960,-151.0,0.00023288,7]
[391919379,1760986242970,-151.56575925,0.00023288,7]
[391919380,1760986242980,-151.0,0.00023288,7]
[391919381,1760986242989,-151.0,0.00023288,7]
[391919383,1760986242999,-151.674042,0.00023288,7]
[391919385,1760986243009,-211.05269,0.00023288,7]
[391919386,1760986243018,-151.0,0.00023288,7]
[391919387,1760986243028,-151.0,0.00023288,7]
[391919388,1760986243038,-173.359068,0.00023288,7]
[391919390,1760986243048,-151.494792,0.00023288,7]
[391919391,1760986243057,-1121.25,0.00023476,2]
[391919392,1760986243066,-347.92933343,0.00024193,2]
[391919393,1760986243075,-1121.25,0.00024345,2]
[391919394,1760986243085,-151.0,0.00024658,7]
[391919395,1760986243094,-3172.03,0.00024799,2]
[391919396,1760986243105,-500.0,0.00024799,2]
[391919397,1760986243114,-151.0,0.000248,7]
[391919398,1760986243124,-153.966915,0.000248,7]
[391919399,1760986243133,-45.86335489,0.000248,3]
[391919400,1760986243146,-191069.73174211,0.000248,3]
[391919401,1760986243156,-1471.945348,0.000248,7]
[391919402,1760986243165,-1471.945348,0.000248,7]
[391919403,1760986243175,-1471.945348,0.000248,7]
[391919404,1760986243184,-1471.945348,0.000248,7]
[391919405,1760986243195,-151.0,0.000248,7]
[391919406,1760986243205,-500.0,0.00024932,2]
[391919407,1760986243214,-1121.25,0.00025215,2]
[391919408,1760986243224,-500.0,0.00026084,2]
[391919409,1760986243233,-1121.25,0.00026084,2]
[391919410,1760986243243,-1000.0,0.000263,2]
[391919411,1760986243254,-170.22,0.00026642,2]
[391919412,1760986243263,-244.94,0.00026676,2]
[391919413,1760986243273,-1121.25,0.00026954,2]
[391919414,1760986243285,-347.92933343,0.0002729,2]
[391919415,1760986243294,-166.78,0.00027321,2]
[391919416,1760986243305,-14701.1996228,0.00027387,3]
[391919417,1760986243314,-369.74,0.00027397,30]
[391919418,1760986243324,-183.43,0.000274,2]
[391919419,1760986243334,-183.43,0.000274,2]
[391919420,1760986243343,-183.43,0.000274,2]
[391919421,1760986243353,-183.43,0.000274,2]
[391919422,1760986243362,-183.43,0.000274,2]
[391919423,1760986243371,-1121.25,0.00027823,2]
[391919424,1760986243381,-274.21,0.00028151,18]
[391919425,1760986243390,-14701.1996228,0.0002859,3]
[391919426,1760986243399,-151.0,0.000286,30]
[391919427,1760986243408,-151.0,0.000286,30]
[391919428,1760986243418,-151.0,0.000286,15]
[391919429,1760986243427,-151.0,0.000286,30]
[391919430,1760986243437,-151.0,0.000286,30]
[391919431,1760986243447,-24891.59269072,0.000286,30]
[391919432,1760986243457,-1121.25,0.00028693,2]
[391919433,1760986243466,-166.78,0.00028824,2]
[391919434,1760986243475,-161.87670301,0.00029267,2]
[391919435,1760986243490,-317.78,0.00029349,2]
[391919436,1760986243499,-181.86183994,0.00029478,7]
[391919437,1760986243508,-168.88,0.00029486,2]
[391919438,1760986243517,-1121.25,0.00029562,2]
[391919439,1760986243526,-158.9,0.00029578,2]
[391919440,1760986243536,-1000.0,0.00029619,2]
[391919441,1760986243545,-150.0,0.00029686,2]
[391919442,1760986243555,-500.0,0.00029817,7]
[391919443,1760986243565,-1000.0,0.00029881,2]
[391919444,1760986243575,-2400.0,0.00029956,7]
[391919445,1760986243584,-2400.0,0.00029986,7]
[391919446,1760986243593,-4675.32826063,0.0003,30]
[391919447,1760986243603,-500.0,0.00030101,7]
[391919448,1760986243613,-600.35,0.00030201,2]
[391919449,1760986243623,-1478.34,0.0003025,2]
[391919450,1760986243633,-14701.1996228,0.00030253,3]
[391919451,1760986243642,-5000.0,0.00030263,2]
[391919452,1760986243653,-166.78,0.00030327,2]
[391919453,1760986243662,-500.0,0.00030338,7]
[391919454,1760986243671,-347.92933343,0.00030388,2]
[391919455,1760986243680,-1121.25,0.00030432,2]
[391919456,1760986243689,-2400.0,0.00030448,7]
[391919457,1760986243698,-2400.0,0.00030453,7]
[391919458,1760986243707,-2400.0,0.0003063,7]
[391919459,1760986243715,-169.45,0.00030653,2]
[391919460,1760986243724,-500.0,0.00030804,7]
[391919461,1760986243733,-155.0,0.00031,120]
[391919462,1760986243742,-156.0,0.00031,120]
[391919463,1760986243750,-2400.0,0.00031021,7]
[391919464,1760986243759,-1121.25,0.00031301,2]
[391919465,1760986243768,-2400.0,0.0003138,7]
[391919466,1760986243777,-500.0,0.00031382,7]
[391919467,1760986243785,-2400.0,0.00031513,7]
[391919468,1760986243794,-2400.0,0.00031632,7]
[391919469,1760986243803,-500.0,0.00031678,7]
[391919470,1760986243812,-500.0,0.00031708,7]
[391919471,1760986243821,-166.78,0.0003183,2]
[391919472,1760986243830,-2400.0,0.00031877,7]
[391919473,1760986243844,-500.0,0.00031944,7]
[391919474,1760986243852,-14701.1996228,0.00032138,3]
[391919475,1760986243861,-2400.0,0.00032148,7]
[391919476,1760986243870,-1121.25,0.00032171,2]
[391919477,1760986243879,-694.95,0.00032192,2]
[391919478,1760986243888,-10048.19434126,0.000322,120]
[391919479,1760986243897,-163.42277425,0.000322,120]
[391919480,1760986243906,-1471.945348,0.000322,30]
[391919481,1760986243916,-1471.945348,0.000322,30]
[391919482,1760986243925,-1471.945348,0.000322,30]
[391919483,1760986243934,-1471.945348,0.000322,30]
[391919484,1760986243943,-500.0,0.00032289,7]
[391919485,1760986243952,-151.0,0.00032328,30]
[391919486,1760986243961,-151.0,0.00032328,30]
[391919487,1760986243969,-14701.1996228,0.00032329,3]
[391919488,1760986243978,-2049.0,0.00032339,2]
[391919489,1760986243987,-3410.0,0.00032339,2]
[391919490,1760986243996,-786.0,0.00032339,2]
[391919491,1760986244007,-1268.0,0.00032339,2]
[391919492,1760986244017,-557.0,0.00032339,2]
[391919493,1760986244028,-2793.923,0.00032339,2]
[391919494,1760986244037,-2591.0,0.00032339,2]
[391919495,1760986244047,-6440.0,0.00032339,2]
[391919496,1760986244056,-369.74,0.00032379,30]
[391919497,1760986244066,-2066.44631822,0.0003253,7]
[391919498,1760986244099,-333.55368178,0.0003253,7]
[391919499,1760986244109,-389.21528953,0.00032564,7]
[391919501,1760986256156,-656.72323842,0.00032564,7]
[391919502,1760986256169,-619.31149794,0.00032564,7]
[391919503,1760986325573,600.0,0.00034353,30]
[391919504,1760986325604,500.0,0.00034353,30]
[391919505,1760986325633,500.0,0.00034353,30]
[391919506,1760986325667,500.0,0.00034353,30]
[391919507,1760986326203,600.0,0.00034353,30]
[391919508,1760986326240,500.0,0.00034353,30]
[391919509,1760986326276,500.0,0.00034353,30]
[391919510,1760986326310,500.0,0.00034353,30]
[391919511,1760986326396,151.0,0.00034353,30]
[391919512,1760986326912,500.0,0.00034353,30]
[391919513,1760986326957,500.0,0.00034353,30]
[391919514,1760986326995,500.0,0.00034353,30]
[391919515,1760986327127,600.0,0.00034353,30]
[391919516,1760986327581,500.0,0.00034353,30]
[391919517,1760986327655,151.0,0.00034353,30]
[391919518,1760986327786,600.0,0.00034353,30]
[391919519,1760986328247,500.0,0.00034353,30]
[391919520,1760986328303,151.0,0.00034353,30]
[391919521,1760986328435,600.0,0.00034353,30]
[391919522,1760986328771,500.0,0.00034353,30]
[391919523,1760986328884,500.0,0.00034353,30]
[391919524,1760986328953,151.0,0.00034353,30]
[391919525,1760986329096,600.0,0.00034353,30]
[391919526,1760986329429,500.0,0.00034353,30]
[391919527,1760986329533,500.0,0.00034353,30]
[391919528,1760986329705,151.0,0.00034353,30]
[391919529,1760986330054,500.0,0.00034353,30]
[391919530,1760986330174,500.0,0.00034353,30]
[391919531,1760986330308,151.0,0.00034353,30]
[391919532,1760986330710,500.0,0.00034353,30]
[391919533,1760986330796,500.0,0.00034353,30]
[391919534,1760986330846,250.0,0.00034353,30]
[391919535,1760986330973,151.0,0.00034353,30]
[391919536,1760986331338,500.0,0.00034353,30]
[391919537,1760986331467,250.0,0.00034353,30]
[391919538,1760986331596,151.0,0.00034353,30]
[391919539,1760986331979,500.0,0.00034353,30]
[391919540,1760986332097,250.0,0.00034353,30]
[391919541,1760986332233,151.0,0.00034353,30]
[391919542,1760986332740,250.0,0.00034353,30]
[391919543,1760986332876,151.0,0.00034353,30]
[391919544,1760986332920,618.50378591,0.00034353,30]
[391919545,1760986332971,500.0,0.00034353,30]
[391919546,1760986333389,250.0,0.00034353,30]
[391919547,1760986333535,151.0,0.00034353,30]
[391919548,1760986333605,500.0,0.00034353,30]
[391919549,1760986334054,250.0,0.00034353,30]
[391919550,1760986334250,151.0,0.00034353,30]
[391919551,1760986334371,500.0,0.00034353,30]
[391919552,1760986334585,250.0,0.00034353,30]
[391919553,1760986334825,250.0,0.00034353,30]
[391919554,1760986334894,151.0,0.00034353,30]
[391919555,1760986335004,500.0,0.00034353,30]
[391919556,1760986335356,250.0,0.00034353,30]
[391919557,1760986335660,500.0,0.00034353,30]
[391919558,1760986335771,250.0,0.00034353,30]
[391919559,1760986335993,250.0,0.00034353,30]
[391919560,1760986336298,151.0,0.00034353,30]
[391919561,1760986336341,500.0,0.00034353,30]
[391919562,1760986336449,250.0,0.00034353,30]
[391919563,1760986336631,250.0,0.00034353,30]
[391919564,1760986336949,151.0,0.00034353,30]
[391919565,1760986337002,500.0,0.00034353,30]
[391919566,1760986337079,250.0,0.00034353,30]
[391919567,1760986337620,151.0,0.00034353,30]
[391919568,1760986337649,500.0,0.00034353,30]
[391919569,1760986337756,250.0,0.00034353,30]
[391919570,1760986338621,151.0,0.00034353,30]
[391919571,1760986338660,500.0,0.00034353,30]
[391919572,1760986338689,250.0,0.00034353,30]
[391919573,1760986338726,250.0,0.00034353,30]
[391919574,1760986338896,151.0,0.00034353,30]
[391919575,1760986338976,250.0,0.00034353,30]
[391919576,1760986339006,500.0,0.00034353,30]
[391919577,1760986339122,250.0,0.00034353,30]
[391919578,1760986339572,151.0,0.00034353,30]
[391919579,1760986339636,500.0,0.00034353,30]
[391919580,1760986339667,250.0,0.00034353,30]
[391919581,1760986339847,250.0,0.00034353,30]
[391919582,1760986339944,500.0,0.00034353,30]
[391919583,1760986340214,151.0,0.00034353,30]
[391919584,1760986340447,250.0,0.00034353,30]
[391919585,1760986340613,500.0,0.00034353,30]
[391919586,1760986341115,250.0,0.00034353,30]
[391919587,1760986341290,500.0,0.00034353,30]
[391919588,1760986341355,250.0,0.00034353,30]
[391919589,1760986341763,250.0,0.00034353,30]
[391919590,1760986341989,500.0,0.00034353,30]
[391919591,1760986342020,250.0,0.00034353,30]
[391919592,1760986342429,250.0,0.00034353,30]
[391919593,1760986342656,500.0,0.00034353,30]
[391919594,1760986343237,250.0,0.00034353,30]
[391919595,1760986343307,500.0,0.00034353,30]
[391919597,1760986344005,250.0,0.00034353,30]
[391919598,1760986344048,500.0,0.00034353,30]
[391919599,1760986344082,500.0,0.00034353,30]
[391919600,1760986344336,250.0,0.00034353,30]
[391919601,1760986344558,250.0,0.00034353,30]
[391919602,1760986344646,500.0,0.00034353,30]
[391919603,1760986344687,500.0,0.00034353,30]
[391919604,1760986345026,250.0,0.00034353,30]
[391919605,1760986345231,250.0,0.00034353,30]
[391919606,1760986345296,500.0,0.00034353,30]
[391919607,1760986345686,250.0,0.00034353,30]
[391919608,1760986345723,500.0,0.00034353,30]
[391919609,1760986345961,250.0,0.00034353,30]
[391919610,1760986345999,500.0,0.00034353,30]
[391919611,1760986346358,250.0,0.00034353,30]
[391919612,1760986346404,500.0,0.00034353,30]
[391919613,1760986346532,250.0,0.00034353,30]
[391919614,1760986346687,500.0,0.00034353,30]
[391919615,1760986347055,500.0,0.00034353,30]
[391919616,1760986347191,250.0,0.00034353,30]
[391919617,1760986347388,500.0,0.00034353,30]
[391919618,1760986347530,250.0,0.00034353,30]
[391919619,1760986347719,500.0,0.00034353,30]
[391919620,1760986347880,250.0,0.00034353,30]
[391919621,1760986348105,500.0,0.00034353,30]
[391919622,1760986348793,250.0,0.00034348,30]
[391919623,1760986348831,250.0,0.00034348,30]
[391919624,1760986348869,500.0,0.00034348,30]
[391919625,1760986349007,500.0,0.00034348,30]
[391919626,1760986349190,250.0,0.00034348,30]
[391919627,1760986349367,250.0,0.00034348,30]
[391919628,1760986349445,500.0,0.00034348,30]
[391919629,1760986349687,500.0,0.00034348,30]
[391919630,1760986350045,250.0,0.00034348,30]
[391919631,1760986350163,500.0,0.00034348,30]
[391919632,1760986350377,500.0,0.00034348,30]
[391919633,1760986350722,500.0,0.00034348,30]
[391919634,1760986350831,500.0,0.00034348,30]
[391919635,1760986351028,500.0,0.00034348,30]
[391919636,1760986351337,153.01008737,0.00034348,30]
[391919637,1760986351489,500.0,0.00034348,30]
[391919638,1760986351527,500.0,0.00034348,30]
[391919639,1760986351674,500.0,0.00034348,30]
[391919640,1760986351989,250.0,0.00034348,30]
[391919641,1760986352022,500.0,0.00034348,30]
[391919642,1760986352100,500.0,0.00034348,30]
[391919643,1760986352337,500.0,0.00034348,30]
[391919644,1760986352640,250.0,0.00034348,30]
[391919645,1760986352697,500.0,0.00034348,30]
[391919646,1760986352977,500.0,0.00034348,30]
[391919647,1760986353285,500.0,0.00034348,30]
[391919648,1760986353318,250.0,0.00034348,30]
[391919649,1760986353348,250.0,0.00034348,30]
[391919650,1760986353404,500.0,0.00034348,30]
[391919651,1760986353641,500.0,0.00034348,30]
[391919652,1760986353958,250.0,0.00034348,30]
[391919653,1760986354176,500.0,0.00034348,30]
[391919654,1760986354209,250.0,0.00034348,30]
[391919655,1760986354302,500.0,0.00034348,30]
[391919656,1760986354628,250.0,0.00034348,30]
[391919657,1760986354841,250.0,0.00034348,30]
[391919658,1760986354901,500.0,0.00034348,30]
[391919659,1760986355048,500.0,0.00034348,30]
[391919660,1760986355290,250.0,0.00034348,30]
[391919661,1760986355521,250.0,0.00034348,30]
[391919662,1760986355587,500.0,0.00034348,30]
[391919663,1760986355792,500.0,0.00034348,30]
[391919664,1760986355926,250.0,0.00034348,30]
[391919665,1760986356146,250.0,0.00034348,30]
[391919666,1760986356608,250.0,0.00034348,30]
[391919667,1760986356772,500.0,0.00034348,30]
[391919668,1760986356805,250.0,0.00034348,30]
[391919669,1760986357264,250.0,0.00034348,30]
[391919670,1760986357459,250.0,0.00034348,30]
[391919671,1760986357496,500.0,0.00034348,30]
[391919672,1760986357683,500.0,0.00034348,30]
[391919673,1760986357936,250.0,0.00034348,30]
[391919674,1760986358201,500.0,0.00034348,30]
[391919675,1760986358581,250.0,0.00034348,30]
[391919676,1760986358656,250.0,0.00034348,30]
[391919677,1760986359127,500.0,0.00034348,30]
[391919678,1760986359252,250.0,0.00034348,30]
[391919679,1760986359316,250.0,0.00034348,30]
[391919680,1760986359391,500.0,0.00034348,30]
[391919681,1760986359521,500.0,0.00034348,30]
[391919682,1760986359915,250.0,0.00034348,30]
[391919683,1760986360565,250.0,0.00034348,30]
[391919684,1760986360783,500.0,0.00034348,30]
[391919685,1760986361454,500.0,0.00034348,30]
[391919686,1760986362064,250.0,0.00034348,30]
[391919687,1760986362135,500.0,0.00034348,30]
[391919688,1760986362639,214.6,0.00034348,30]
[391919689,1760986363246,250.0,0.00034348,30]
[391919690,1760986363277,500.0,0.00034348,30]
[391919691,1760986364058,500.0,0.00034348,30]
[391919692,1760986364584,500.0,0.00034348,30]
[391919693,1760986365823,500.0,0.00034348,30]
[391919694,1760986366477,500.0,0.00034348,30]
[391919695,1760986380392,10182.8469,0.00034348,120]
[391919696,1760986485896,-1168.3688,0.00014668,2]
[391919697,1760986497143,-225.06053739,0.00014733,2]
[391919698,1760986505582,-284.75501256,0.00014833,2]
[391919701,1760986624452,500.0,0.00034348,30]
[391919702,1760986625106,500.0,0.00034348,30]
[391919703,1760986625284,478.53639984,0.00034348,30]
[391919704,1760986625888,500.0,0.00034348,30]
[391919705,1760986626552,500.0,0.00034348,30]
[391919706,1760986627201,500.0,0.00034348,30]
[391919707,1760986627931,500.0,0.00034348,30]
[391919708,1760986627968,500.0,0.00034348,30]
[391919709,1760986628682,500.0,0.00034348,30]
[391919710,1760986628715,500.0,0.00034348,30]